[Event "82nd Italian Championship 2023"]
[Site "Brescia"]
[Date "2023.12.02"]
[Round "5.3"]
[White "Lodici, Lorenzo"]
[Black "Carnicelli, Valerio"]
[Result "1-0"]
[ECO "D80"]
[WhiteElo "2550"]
[BlackElo "2423"]
[Annotator "TA"]
[PlyCount "151"]
[EventDate "2023.11.28"]
[EventType "tourn"]
[EventCountry "ITA"]
[SourceTitle "playchess.com"]
[Source "ChessBase"]
[SourceQuality "1"]
[TimeControl "40/6000+30:20/3000+30:900+30"]

{[%evp 9,151,15,19,9,22,14,24,37,31,-14,-7,-70,-18,-18,-21,-22,-28,-28,-30,-19,0,0,0,0,2,0,18,0,0,0,0,16,6,6,9,6,16,24,11,9,15,6,12,4,6,7,6,7,4,6,8,27,33,34,35,32,129,129,136,136,136,93,114,96,118,116,116,116,110,104,136,136,136,136,256,99,100,97,101,98,105,96,98,91,98,87,95,98,89,87,95,90,98,32,88,7,112,95,166,143,190,139,142,141,131,69,12799,170,1649,8397,12818,12815,3279,3232,12834,12831,12831,12831,12849,446,12849,601,12820,2231,1072,925,12849,12849,12850,27999,27999,0,0,0,0,0,0,0,27999,27999,27999,27999,27999,27999]} 1. c4 {[%emt 0:08:04]} Nf6 {[%emt 0:00:03]} 2. Nc3 {[%emt 0:00:04]} g6 {[%emt 0:00:08]} 3. d4 {[%emt 0:00:08]} d5 {[%emt 0:00:05]} 4. Bg5 {[%emt 0:04:54]} Bg7 {[%emt 0:01:18]} 5. Bxf6 {[%emt 0:00:05]} Bxf6 {[%emt 0:00:03]} 6. cxd5 {[%emt 0:00:05] D80: Grünfeld: Unusual White 4th moves and 4 Bg5.} c5 {[%emt 0:00:16]} 7. dxc5 {[%emt 0:02:33]} Nd7 {[%emt 0:00:05]} 8. c6 {[%emt 0:02:31] White has an edge.} Nc5 {[%emt 0:00:13] [#]} 9. e3 $146 {[%emt 0:07:17]} (9. Rc1 $5 {[%cal Rb2b4]}) ({Predecessor:} 9. Rc1 Qb6 10. Nf3 O-O 11. e3 Qxb2 12. Nd4 bxc6 13. Be2 cxd5 14. Nxd5 Bxd4 15. Nxe7+ Kg7 16. Qxd4+ Qxd4 17. exd4 Re8 18. Rxc5 {½-½ Vallejo Pons,F (2710)-Nepomniachtchi,I (2751) Moscow FIDE GP 2017 (9)}) 9... bxc6 {[%emt 0:05:52] White must now prevent ...Rb8.} 10. Bc4 {[%emt 0:04:37]} (10. Rc1 $11 Qa5 11. Nf3 (11. dxc6 Bf5 $17)) 10... Rb8 {[%emt 0:05:01]} (10... Qb6 $15 11. Qd2 Bb7) 11. dxc6 $11 {[%emt 0:09:03] Qxd8+ would be deadly.} Qa5 {[%emt 0:05:26]} (11... Rxb2 $2 12. Qxd8+ Kxd8 13. O-O-O+ Kc7 14. Kxb2 $16) 12. c7 $1 {[%emt 0:01:28]} Qxc7 {[%emt 0:05:27]} 13. Nge2 $1 {[%emt 0:04:42]} Rxb2 {[%emt 0:06:30][%cal Oc5e4]} 14. O-O {[%emt 0:03:18]} O-O {[%emt 0:08:19]} 15. Qc1 {[%emt 0:01:53]} Rb8 {[%emt 0:04:40]} 16. Nd5 {[%emt 0:03:37]} Qd6 $132 {[%emt 0:09:54][%mdl 2048] Black puts up resistance} 17. Nxf6+ {[%emt 0:08:01]} Qxf6 {[%emt 0:01:17]} 18. Nf4 {[%emt 0:00:56]} (18. Qa3 $5 {[%cal Ra3c5]} Ne4 19. Rad1 $11) 18... Ba6 {[%emt 0:07:58]} 19. Bxa6 {[%emt 0:10:30]} Nxa6 {[%emt 0:00:11]} 20. Qa3 {[%emt 0:00:06]} Rfd8 {[%emt 0:02:32] Against Nd5} 21. Rad1 {[%emt 0:00:36]} Rxd1 {[%emt 0:10:30]} 22. Rxd1 {[%emt 0:00:01]} Qd6 {[%emt 0:00:16] Inhibits Nd5.} 23. Qxd6 {[%emt 0:01:39]} (23. Rxd6 $2 {leads to mate.} Rb1+) 23... exd6 {[%emt 0:02:42][%mdl 4096] Endgame KRN-KRN} 24. g4 {[%emt 0:04:38]} Rb2 {[%emt 0:03:32]} 25. Rxd6 {[%emt 0:08:15]} Rxa2 {[%emt 0:00:05]} 26. Nd5 {[%emt 0:00:05]} h6 {[%emt 0:07:48]} 27. h4 {[%emt 0:01:16]} Nc5 {[%emt 0:05:54]} 28. Nf6+ {[%emt 0:00:05]} Kg7 {[%emt 0:03:24]} 29. g5 {[%emt 0:00:05]} hxg5 {[%emt 0:00:03]} 30. hxg5 {[%emt 0:00:03] Rd8 would kill now.} Ne6 {[%emt 0:00:20] Prevents Rd8} 31. f4 {[%emt 0:00:02]} Re2 {[%emt 0:08:17]} 32. Rd3 {[%emt 0:06:06]} a6 {[%emt 0:01:45]} ({Better is} 32... Ra2 $14) 33. Ra3 $1 $16 {[%emt 0:03:39]} Nc5 {[%emt 0:01:46]} 34. Rc3 $1 {[%emt 0:00:13] Inhibits Rc2.} Ne6 {[%emt 0:00:07]} 35. Rc8 {[%emt 0:00:05][%csl Gf6][%cal Rc8g8]} Nf8 {[%emt 0:00:05]} 36. Ng4 {[%emt 0:00:13]} Nd7 {[%emt 0:03:27]} 37. Rd8 {[%emt 0:01:03]} Nf8 {[%emt 0:00:33]} 38. Ra8 {[%emt 0:03:58]} Nd7 {[%emt 0:02:53]} 39. Rxa6 {[%emt 0:01:19]} Nc5 {[%emt 0:00:18]} 40. Ra7 {[%emt 0:05:30]} Rb2 {[%emt 0:00:16]} 41. Nf6 {[%emt 0:12:52] Intending Ra8 and mate.} Ne6 {[%emt 0:02:44]} (41... Rb8 $16 {was necessary.} 42. Kf2 Rh8) 42. Ra8 $2 {[%emt 0:01:43]} (42. Ne8+ $1 $18 {is the precise move to win.} Kg8 43. Nd6) 42... Nxg5 {[%emt 0:04:02]} 43. Ne8+ $1 {[%emt 0:03:31]} ({Resist} 43. fxg5 Rg2+ 44. Kf1 Rxg5 $18) 43... Kh6 {[%emt 0:00:03]} 44. fxg5+ {[%emt 0:00:09]} Kxg5 {[%emt 0:00:03] KRN-KR} 45. Ra4 $1 {[%emt 0:09:41]} Re2 {[%emt 0:15:52] [#]} 46. Re4 $1 {[%emt 0:00:02]} f5 {[%emt 0:01:39] [#]} 47. Kf1 $1 {[%emt 0:00:01]} Ra2 {[%emt 0:02:12]} 48. Rb4 {[%emt 0:00:02]} Rc2 {[%emt 0:02:14]} 49. Rd4 {[%emt 0:03:08]} Kh6 {[%emt 0:04:07]} 50. Nd6 {[%emt 0:01:34]} Kg5 {[%emt 0:03:05]} 51. Rf4 {[%emt 0:06:32]} ({White should try} 51. Nb5 $16) 51... Ra2 {[%emt 0:02:56]} (51... Kf6 $1 $14) 52. Ke1 {[%emt 0:00:21]} ({White should play} 52. Rc4 $16) 52... Rc2 {[%emt 0:01:09]} (52... Kf6 $1 $11) 53. Ra4 {[%emt 0:08:46]} Rh2 {[%emt 0:02:48]} (53... Kh5 $16 54. Rc4 Rxc4 55. Nxc4 Kg4) 54. Nb5 {[%emt 0:01:18]} Kh5 {[%emt 0:03:20]} (54... Rb2 $16 {keeps fighting.}) 55. Rf4 {[%emt 0:04:41]} (55. Nd4 $18) 55... Kg5 {[%emt 0:02:24]} 56. Nd4 {[%emt 0:00:31] Nf3+ is the strong threat.} Kf6 {[%emt 0:02:51]} 57. Nf3 {[%emt 0:00:05]} (57. Rf2 $16 Rxf2 58. Kxf2) 57... Ra2 {[%emt 0:01:48][%mdl 8192]} (57... Rh1+ $14 58. Ke2 g5) 58. Rb4 $18 {[%emt 0:00:04]} Ra6 $2 {[%emt 0:00:31]} (58... Kg7 59. Rb6 Ra4) 59. Rb8 {[%emt 0:01:33]} Rc6 {[%emt 0:03:37]} 60. Nd4 {[%emt 0:01:23]} Ra6 {[%emt 0:01:14]} 61. Kf2 {[%emt 0:15:07]} Rd6 {[%emt 0:03:11]} 62. Kf3 {[%emt 0:00:00]} Ra6 {[%emt 0:01:26]} 63. Rc8 {[%emt 0:00:00]} Rb6 {[%emt 0:02:01]} 64. Rc4 {[%emt 0:08:33]} (64. Rc6+ $142 Rxc6 65. Nxc6) 64... Ra6 {[%emt 0:01:34]} (64... Rb1 $142 65. Rc6+ Kf7) 65. Rb4 {[%emt 0:00:05]} (65. Rc6+ $142 Rxc6 66. Nxc6) 65... Ke5 {[%emt 0:01:21]} 66. Rb5+ {[%emt 0:00:13]} Kf6 {[%emt 0:00:05]} 67. Rc5 {[%emt 0:00:41] Threatens to win with Rc6+.} Rb6 {[%emt 0:00:12]} 68. Rc6+ {[%emt 0:00:03]} Rxc6 {[%emt 0:00:03]} 69. Nxc6 {[%emt 0:00:02] KN-KPP} g5 {[%emt 0:00:32]} 70. Nb4 {[%emt 0:00:10]} Ke5 $1 {[%emt 0:00:41]} 71. Nd3+ {[%emt 0:00:01]} Kd5 {[%emt 0:04:27]} 72. Nf2 {[%emt 0:00:09]} Kc4 {[%emt 0:02:29]} 73. Ke2 $2 {[%emt 0:00:31][%mdl 8192]} (73. Nd1 $11) 73... Kc3 $2 {[%emt 0:04:06][%mdl 8192]} (73... Kd5 $11) 74. Nh3 {[%emt 0:00:57] White mates.} g4 {[%emt 0:01:20]} 75. Nf4 {[%emt 0:01:04]} Kc4 {[%emt 0:00:42]} 76. Kd2 {[%emt 0:05:14] Weighted Error Value: White=0.12 (very precise) /Black=0.17 (very precise)} 1-0

[Event "82nd Italian Championship 2023"]
[Site "Brescia"]
[Date "2023.12.02"]
[Round "5.4"]
[White "Brunello, Sabino"]
[Black "Moroni, Luca Jr"]
[Result "0-1"]
[ECO "A13"]
[WhiteElo "2492"]
[BlackElo "2575"]
[Annotator "ChessBase"]
[PlyCount "42"]
[EventDate "2023.11.28"]
[EventType "tourn"]
[EventCountry "ITA"]
[SourceTitle "playchess.com"]
[Source "ChessBase"]
[SourceQuality "1"]
[TimeControl "40/6000+30:20/3000+30:900+30"]

1. c4 {[%emt 0:00:48]} e6 {[%emt 0:00:07]} 2. g3 {[%emt 0:00:51]} d5 {[%emt 0:00:08]} 3. Bg2 {[%emt 0:00:07]} Nf6 {[%emt 0:01:54]} 4. Nf3 {[%emt 0:00:22]} d4 {[%emt 0:00:05]} 5. O-O {[%emt 0:00:25]} c5 {[%emt 0:09:07]} 6. e3 {[%emt 0:00:14]} Nc6 {[%emt 0:00:06]} 7. exd4 {[%emt 0:00:04]} cxd4 {[%emt 0:00:05]} 8. d3 {[%emt 0:00:03]} Bd6 {[%emt 0:00:17]} 9. Bg5 {[%emt 0:00:36]} h6 {[%emt 0:00:06]} 10. Bxf6 {[%emt 0:00:03]} Qxf6 {[%emt 0:00:03]} 11. Nbd2 {[%emt 0:00:03]} Bc7 {[%emt 0:00:03]} 12. a3 {[%emt 0:12:54]} a5 {[%emt 0:00:42]} 13. c5 {[%emt 0:07:46]} O-O {[%emt 0:05:57]} 14. Rc1 {[%emt 0:01:07]} e5 {[%emt 0:05:32]} 15. Re1 {[%emt 0:04:49]} Be6 {[%emt 0:11:59]} 16. Qa4 {[%emt 0:15:57]} Bd5 {[%emt 0:21:04]} 17. Qb5 {[%emt 0:29:09]} a4 {[%emt 0:10:41]} 18. Nh4 {[%emt 0:00:24]} Ba5 {[%emt 0:05:28]} 19. Ne4 {[%emt 0:23:29]} Qe6 {[%emt 0:05:12]} 20. Red1 {[%emt 0:00:46]} g5 {[%emt 0:04:31]} 21. Nf3 {[%emt 0:00:25]} Bc7 {[%emt 0:01:02]} 0-1

[Event "82nd Italian Championship 2023"]
[Site "Brescia"]
[Date "2023.12.02"]
[Round "5.5"]
[White "Lumachi, Gabriele"]
[Black "Sonis, Francesco"]
[Result "1/2-1/2"]
[ECO "A46"]
[WhiteElo "2395"]
[BlackElo "2564"]
[Annotator "ChessBase"]
[PlyCount "118"]
[EventDate "2023.11.28"]
[EventType "tourn"]
[EventCountry "ITA"]
[SourceTitle "playchess.com"]
[Source "ChessBase"]
[SourceQuality "1"]
[TimeControl "40/6000+30:20/3000+30:900+30"]

1. d4 {[%emt 0:00:07]} Nf6 {[%emt 0:00:12]} 2. Nf3 {[%emt 0:01:53]} b6 {[%emt 0:00:41]} 3. Bg5 {[%emt 0:00:22]} e6 {[%emt 0:02:29]} 4. e4 {[%emt 0:06:26]} h6 {[%emt 0:00:11]} 5. Bxf6 {[%emt 0:00:04]} Qxf6 {[%emt 0:00:06]} 6. Bd3 {[%emt 0:01:53]} Bb7 {[%emt 0:01:35]} 7. O-O {[%emt 0:00:58]} d6 {[%emt 0:01:22]} 8. Qe2 {[%emt 0:08:04]} g6 {[%emt 0:05:18]} 9. e5 {[%emt 0:09:56]} Bxf3 {[%emt 0:05:04]} 10. Qe3 {[%emt 0:07:22]} dxe5 {[%emt 0:15:18]} 11. dxe5 {[%emt 0:00:08]} Bc5 {[%emt 0:00:12]} 12. exf6 {[%emt 0:00:05]} Bxe3 {[%emt 0:00:04]} 13. fxe3 {[%emt 0:00:09]} Bb7 {[%emt 0:00:04]} 14. Nc3 {[%emt 0:00:38]} Nd7 {[%emt 0:11:49]} 15. Nb5 {[%emt 0:15:54]} Kd8 {[%emt 0:03:19]} 16. Rad1 {[%emt 0:14:00]} a6 {[%emt 0:00:09]} 17. Nc3 {[%emt 0:09:21]} c6 {[%emt 0:00:48]} 18. a4 {[%emt 0:16:09]} Kc7 {[%emt 0:00:09]} 19. a5 {[%emt 0:00:06]} b5 {[%emt 0:03:51]} 20. Ne4 {[%emt 0:00:19]} Rhd8 {[%emt 0:08:04]} 21. b4 {[%emt 0:01:45]} c5 {[%emt 0:00:52]} 22. Nxc5 {[%emt 0:03:18]} Nxc5 {[%emt 0:00:05]} 23. bxc5 {[%emt 0:00:05]} Rd5 {[%emt 0:00:04]} 24. c4 {[%emt 0:01:44]} bxc4 {[%emt 0:03:05]} 25. Bxc4 {[%emt 0:00:08]} Rxc5 {[%emt 0:00:04]} 26. Rc1 {[%emt 0:00:21]} Kd6 {[%emt 0:02:21]} 27. Rfd1+ {[%emt 0:01:30]} Ke5 {[%emt 0:00:24]} 28. Be2 {[%emt 0:05:30]} Rxc1 {[%emt 0:01:04]} 29. Rxc1 {[%emt 0:00:01]} Kxf6 {[%emt 0:00:07]} 30. Rb1 {[%emt 0:00:16]} Ra7 {[%emt 0:01:12]} 31. Rb6 {[%emt 0:00:42]} Ke7 {[%emt 0:00:04]} 32. Kf2 {[%emt 0:00:54]} Bc8 {[%emt 0:00:49]} 33. Rc6 {[%emt 0:02:41]} Kd7 {[%emt 0:00:53]} 34. Rb6 {[%emt 0:00:01]} Kc7 {[%emt 0:00:28]} 35. Bf3 {[%emt 0:02:23]} Kd8 {[%emt 0:02:25]} 36. Be2 {[%emt 0:00:28]} Kd7 {[%emt 0:00:19]} 37. h3 {[%emt 0:00:58]} Kc7 {[%emt 0:00:13]} 38. Bf3 {[%emt 0:00:13]} Kd8 {[%emt 0:00:01]} 39. Be2 {[%emt 0:00:23]} Kd7 {[%emt 0:00:05]} 40. Kg3 {[%emt 0:02:03]} Kd8 {[%emt 0:04:58]} 41. Kf2 {[%emt 0:03:19]} Kc7 {[%emt 0:00:21]} 42. Bf3 {[%emt 0:02:54]} Bd7 {[%emt 0:00:16]} 43. Be2 {[%emt 0:03:47]} Bb5 {[%emt 0:08:10]} 44. Bxb5 {[%emt 0:00:34]} axb5 {[%emt 0:00:06]} 45. Rxb5 {[%emt 0:00:03]} Ra6 {[%emt 0:00:04]} 46. g4 {[%emt 0:00:23]} Kc6 {[%emt 0:00:58]} 47. Rb8 {[%emt 0:02:39]} Rxa5 {[%emt 0:00:41]} 48. Rf8 {[%emt 0:00:19]} Ra7 {[%emt 0:00:12]} 49. Rh8 {[%emt 0:00:09]} Kd5 {[%emt 0:00:05]} 50. Kf3 {[%emt 0:00:25]} e5 {[%emt 0:00:39]} 51. Rxh6 {[%emt 0:00:36]} Ra1 {[%emt 0:05:14]} 52. Rh8 {[%emt 0:04:11]} e4+ {[%emt 0:00:33]} 53. Kf2 {[%emt 0:00:42]} Ra2+ {[%emt 0:00:54]} 54. Kg3 {[%emt 0:00:41]} Re2 {[%emt 0:00:17]} 55. Rd8+ {[%emt 0:00:23]} Ke5 {[%emt 0:00:04]} 56. Re8+ {[%emt 0:00:07]} Kd5 {[%emt 0:00:02]} 57. Rd8+ {[%emt 0:00:05]} Ke5 {[%emt 0:00:04]} 58. Re8+ {[%emt 0:00:04]} Kd5 {[%emt 0:00:04]} 59. Rd8+ {[%emt 0:00:04]} Ke5 {[%emt 1:20:58]} 1/2-1/2

[Event "82nd Italian Championship 2023"]
[Site "Brescia"]
[Date "2023.12.04"]
[Round "6.1"]
[White "Santagati, Alessandro"]
[Black "Gilevych, Artem"]
[Result "1-0"]
[ECO "B11"]
[WhiteElo "2245"]
[BlackElo "2416"]
[Annotator "RC"]
[PlyCount "93"]
[EventDate "2023.11.28"]
[EventType "tourn"]
[EventCountry "ITA"]
[SourceTitle "playchess.com"]
[Source "ChessBase"]
[SourceQuality "1"]
[TimeControl "40/6000+30:20/3000+30:900+30"]

1. e4 {[%emt 0:05:45]} c6 {[%emt 0:00:05]} 2. Nc3 {[%emt 0:00:35]} d5 {[%emt 0:00:11]} 3. Nf3 {[%emt 0:00:08]} dxe4 {[%emt 0:00:20]} 4. Nxe4 {[%emt 0:00:07]} Nf6 {[%emt 0:00:05]} 5. Qe2 {[%emt 0:00:44]} Nxe4 {[%emt 0:07:06]} 6. Qxe4 {[%emt 0:00:13]} Qd5 {[%emt 0:00:02]} 7. Qf4 {[%emt 0:02:26]} Qf5 {[%emt 0:11:15]} 8. Qe3 {[%emt 0:11:34]} Qe6 {[%emt 0:02:24]} 9. b3 {[%emt 0:07:57]} Qxe3+ {[%emt 0:10:42]} 10. fxe3 {[%emt 0:01:15]} Bf5 {[%emt 0:01:20]} 11. Nh4 {[%emt 0:07:12]} Be4 {[%emt 0:16:53]} 12. d3 {[%emt 0:06:19]} g5 {[%emt 0:06:58]} 13. Bb2 {[%emt 0:03:34]} Rg8 {[%emt 0:00:19]} 14. Nf3 {[%emt 0:00:59]} Bxf3 {[%emt 0:01:32]} 15. gxf3 {[%emt 0:00:07]} Bg7 {[%emt 0:00:02]} 16. d4 {[%emt 0:02:01]} Nd7 {[%emt 0:01:20]} 17. h4 {[%emt 0:03:06]} h6 {[%emt 0:03:03]} 18. O-O-O {[%emt 0:05:36]} O-O-O {[%emt 0:10:24]} 19. Bc4 {[%emt 0:07:11]} e6 {[%emt 0:03:00]} 20. hxg5 {[%emt 0:03:34]} hxg5 {[%emt 0:00:06]} 21. Rdg1 {[%emt 0:00:45]} Nb6 {[%emt 0:07:34]} 22. Bd3 {[%emt 0:07:25]} Nd5 {[%emt 0:01:15]} 23. Kd2 {[%emt 0:01:29]} c5 {[%emt 0:01:05]} 24. c4 {[%emt 0:05:00]} Nb4 {[%emt 0:01:44]} 25. Bh7 {[%emt 0:03:44]} cxd4 {[%emt 0:04:14]} 26. Bxg8 {[%emt 0:03:30]} dxe3+ {[%emt 0:00:10]} 27. Kxe3 {[%emt 0:01:05]} Bxb2 {[%emt 0:01:38]} 28. Rxg5 {[%emt 0:01:16]} Bc3 {[%emt 0:12:04]} 29. Rg2 {[%emt 0:06:41]} Rd3+ {[%emt 0:03:45]} 30. Kf4 {[%emt 0:03:09]} e5+ {[%emt 0:01:48]} 31. Kg4 {[%emt 0:00:52]} Rd4+ {[%emt 0:02:28]} 32. Kg5 {[%emt 0:04:26]} Rf4 {[%emt 0:00:39]} 33. Rh7 {[%emt 0:01:07]} f6+ {[%emt 0:00:35]} 34. Kg6 {[%emt 0:00:38]} a5 {[%emt 0:00:42]} 35. Be6+ {[%emt 0:00:47]} Kb8 {[%emt 0:00:04]} 36. Bf5 {[%emt 0:01:59]} Na6 {[%emt 0:00:31]} 37. Be4 {[%emt 0:02:38]} Nc5 {[%emt 0:00:01]} 38. Bd5 {[%emt 0:00:16]} f5 {[%emt 0:00:49]} 39. Kg5 {[%emt 0:00:50]} Bd4 {[%emt 0:00:53]} 40. Re2 {[%emt 0:01:03]} Bc3 {[%emt 0:00:53]} 41. Rf7 {[%emt 0:03:44]} a4 {[%emt 0:02:23]} 42. bxa4 {[%emt 0:03:26]} Ka7 {[%emt 0:00:10]} 43. Rxf5 {[%emt 0:03:27]} Rxf5+ {[%emt 0:00:39]} 44. Kxf5 {[%emt 0:00:07]} Kb6 {[%emt 0:00:22]} 45. Rxe5 {[%emt 0:05:07]} Bxe5 {[%emt 0:00:06]} 46. Kxe5 {[%emt 0:00:06]} Nxa4 {[%emt 0:02:36]} 47. Kd6 {[%emt 0:01:52]} 1-0

[Event "82nd Italian Championship 2023"]
[Site "Brescia"]
[Date "2023.12.04"]
[Round "6.2"]
[White "Sonis, Francesco"]
[Black "Basso, Pier Luigi"]
[Result "1/2-1/2"]
[ECO "C54"]
[WhiteElo "2564"]
[BlackElo "2483"]
[Annotator "TA"]
[PlyCount "152"]
[EventDate "2023.11.28"]
[EventType "tourn"]
[EventCountry "ITA"]
[SourceTitle "playchess.com"]
[Source "ChessBase"]
[SourceQuality "1"]
[TimeControl "40/6000+30:20/3000+30:900+30"]

{[%evp 10,152,23,7,25,8,24,3,22,4,7,13,15,12,15,0,1,-13,13,8,14,25,27,0,0,0,26,27,30,33,41,36,40,37,33,35,57,53,62,36,52,46,50,54,64,61,58,61,61,57,67,36,33,35,29,29,32,33,54,49,40,39,111,117,100,11,10,5,11,6,68,69,71,77,78,78,85,78,78,85,85,66,66,47,47,45,158,156,158,158,162,162,115,115,162,162,162,161,855,803,587,155,941,322,744,434,933,498,1208,989,441,195,231,0,0,0,0,0,0,0,0,0,0,0,0,0,0,0,0,0,0,0,0,0,0,0,0,0,0,0,0,0,0,0,0]} 1. e4 {[%emt 0:00:03]} e5 {[%emt 0:11:23]} 2. Bc4 {[%emt 0:00:08]} Nc6 {[%emt 0:01:46]} 3. Nf3 {[%emt 0:00:13]} Bc5 {[%emt 0:00:12]} 4. O-O {[%emt 0:01:34]} Nf6 {[%emt 0:00:14]} 5. d3 {[%emt 0:00:08]} d6 {[%emt 0:00:15]} 6. c3 {[%emt 0:00:20]} a5 {[%emt 0:00:08] C54: Giuoco Piano: 4 c3 Nf6, main lines with 5 d4 and 5 d3.} 7. Re1 {[%emt 0:00:09]} (7. Bg5 $5 {[%cal Rd3d4]}) 7... Ba7 {[%emt 0:00:16]} 8. Na3 {[%emt 0:03:12]} O-O {[%emt 0:00:43]} 9. h3 {[%emt 0:00:36]} h6 {[%emt 0:03:04]} 10. Nb5 {[%emt 0:00:06]} Bb6 {[%emt 0:00:08]} 11. a4 {[%emt 0:12:38]} Be6 {[%emt 0:09:20]} 12. Bb3 {[%emt 0:18:52]} Qd7 {[%emt 0:08:46] [#]} 13. Bc2 $146 {[%emt 0:12:29]} ({Predecessor:} 13. Bxe6 fxe6 14. Be3 Bxe3 15. Rxe3 Qf7 16. Rc1 Nh5 17. Rc2 Nf4 18. g3 Qh5 {½-½ Yemelin,V (2574)-Petrisor,A (2388) Arad op 8th 2015 (7)}) 13... d5 {[%emt 0:28:56]} 14. exd5 {[%emt 0:01:29]} Bxd5 {[%emt 0:00:06]} 15. Be3 {[%emt 0:10:34]} Bxe3 {[%emt 0:00:59]} 16. Rxe3 {[%emt 0:00:05]} Rae8 {[%emt 0:03:57]} 17. Qe2 {[%emt 0:06:31][%cal Rf3e5]} Bxf3 {[%emt 0:03:47]} 18. Qxf3 {[%emt 0:00:31]} Nd5 {[%emt 0:01:51]} 19. Ree1 {[%emt 0:00:05]} Re7 {[%emt 0:05:51]} 20. Bb3 {[%emt 0:01:35]} Nf6 {[%emt 0:00:37]} 21. Re3 {[%emt 0:00:35]} Rfe8 {[%emt 0:05:05]} 22. Rae1 {[%emt 0:00:04]} Kh8 {[%emt 0:02:48]} 23. Na3 {[%emt 0:05:43][%cal Bb5a3,Ba3c4,Bc4d2,Bd2c4][%mdl 32]} Kg8 {[%emt 0:01:42]} 24. Kh1 {[%emt 0:03:34]} Kh8 {[%emt 0:00:33]} 25. Nc4 {[%emt 0:03:58]} Kg8 {[%emt 0:02:13]} 26. Nd2 {[%emt 0:01:52]} Qd6 {[%emt 0:02:49]} 27. R3e2 {[%emt 0:05:02] White is more active.} Kf8 {[%emt 0:01:59]} 28. Kg1 {[%emt 0:04:03]} Kg8 {[%emt 0:00:15]} 29. Nc4 {[%emt 0:00:08]} Qd7 {[%emt 0:00:21]} 30. Ne3 {[%emt 0:02:53]} e4 {[%emt 0:06:20]} 31. dxe4 {[%emt 0:00:07]} Rxe4 {[%emt 0:00:51]} 32. Nd5 {[%emt 0:02:34][%mdl 64] Deflection} Rxe2 {[%emt 0:01:08]} 33. Rxe2 {[%emt 0:00:05]} Nxd5 {[%emt 0:03:35]} 34. Qxd5 {[%emt 0:00:38]} Re7 {[%emt 0:00:23] ...Qxd5 is the strong threat.} 35. Kf1 {[%emt 0:01:16]} Qe8 {[%emt 0:04:00]} (35... g6 $14) 36. Rxe7 $16 {[%emt 0:00:32]} Qxe7 {[%emt 0:00:01][%mdl 4096] Endgame KQB-KQN} 37. Qf5 {[%emt 0:00:20]} ({White should play} 37. g3 $16) 37... b6 $11 {[%emt 0:01:12]} 38. Bc2 {[%emt 0:00:25] Threatening mate with Qh7+.} g6 {[%emt 0:00:36]} 39. Qd5 {[%emt 0:00:14][%csl LRc6,LRg6]} Qd6 {[%emt 0:00:53]} ({Black should try} 39... Qf6 $11) 40. Qxd6 $14 {[%emt 0:00:09]} cxd6 {[%emt 0:00:04] KB-KN} 41. Ke2 {[%emt 0:50:35]} Nb8 {[%emt 0:33:44]} 42. Bd3 {[%emt 0:00:00]} Nd7 {[%emt 0:01:52]} 43. Bc4 {[%emt 0:00:00]} Nf6 {[%emt 0:01:03]} 44. Ke3 {[%emt 0:00:00]} Ne8 {[%emt 0:00:06]} 45. h4 {[%emt 0:00:00]} Kg7 {[%emt 0:05:51]} 46. f4 {[%emt 0:00:00]} Nc7 {[%emt 0:03:04]} 47. g4 {[%emt 0:00:00]} d5 {[%emt 0:04:25]} (47... f5 $14) 48. Ba2 {[%emt 0:00:00]} Kf6 {[%emt 0:00:11]} 49. Kd4 {[%emt 0:00:00]} Ke6 {[%emt 0:00:10]} 50. c4 $1 {[%emt 0:00:00]} Kd6 {[%emt 0:03:44]} (50... Ke7 $18 51. cxd5 Ne8) 51. cxd5 $16 {[%emt 0:00:00]} Ne8 {[%emt 0:00:33]} (51... b5 $16 {was called for.}) 52. g5 $18 {[%emt 0:00:00]} hxg5 {[%emt 0:00:05]} 53. fxg5 {[%emt 0:00:00]} Nc7 $2 {[%emt 0:01:51]} (53... Kd7 54. Ke5 Nd6) 54. Bc4 {[%emt 0:00:00]} Ne8 {[%emt 0:00:06]} 55. Be2 $2 {[%emt 0:00:00]} (55. Bb5 $1 $18 {[%cal Rb5e8]} Ng7 56. Bd3) 55... Ng7 {[%emt 0:01:18]} (55... Ke7 $16 56. Ke5 Nd6) 56. Bg4 $2 {[%emt 0:00:00]} (56. Kc4 {Black must now prevent Kb5.} Ne8 57. Bd3) 56... Ne8 {[%emt 0:00:07]} 57. h5 {[%emt 0:00:00]} gxh5 {[%emt 0:00:04]} 58. Bxh5 {[%emt 0:00:00]} Ke7 {[%emt 0:00:10]} 59. Ke5 {[%emt 0:00:00][%cal Oh5f7] And now Bxf7! would win.} Nd6 {[%emt 0:00:10]} 60. b3 {[%emt 0:00:00] aiming for Be2.} Nb7 {[%emt 0:00:31] [#]} 61. Bxf7 $2 {[%emt 0:04:10]} Kxf7 {[%emt 0:02:47] KN-KP. The position is equal.} 62. d6 {[%emt 0:00:00]} Kg6 $1 {[%emt 0:09:39]} 63. Ke6 {[%emt 0:00:00]} Kxg5 $11 {[%emt 0:00:13] KN-K3P} (63... Nc5+ 64. Ke7 Kxg5 65. d7 $18) 64. d7 {[%emt 0:00:00]} Kf4 $1 {[%emt 0:01:10] Strongly threatening ...Ke4.} 65. Kd5 {[%emt 0:00:00]} Kf5 {[%emt 0:03:46]} 66. Kc6 {[%emt 0:00:00][%csl LRb6,LRb7]} Nd8+ {[%emt 0:00:02]} 67. Kc7 {[%emt 0:00:00]} Ne6+ $1 {[%emt 0:00:07]} 68. Kxb6 {[%emt 0:00:00]} Kf6 {[%emt 0:00:08]} 69. Kxa5 {[%emt 0:00:00]} Ke7 {[%emt 0:00:04]} 70. Kb6 {[%emt 0:00:00]} Kxd7 {[%emt 0:00:04] KN-KPP} 71. b4 {[%emt 0:00:00]} (71. a5 $5 Kc8 $8 72. Kc6 $11) 71... Kc8 {[%emt 0:00:31]} 72. Ka7 {[%emt 0:00:00]} Nd4 {[%emt 0:01:27]} 73. b5 {[%emt 0:00:00]} Nb3 {[%emt 0:00:37]} 74. b6 {[%emt 0:01:06] Threatens to win with b7+.} Na5 {[%emt 0:00:10]} 75. b7+ {[%emt 0:00:33]} Nxb7 {[%emt 0:00:06]} 76. a5 {[%emt 0:00:01]} Nxa5 {[%emt 0:00:04] Blacks defense is rewarded with a draw.   Weighted Error Value: White=0.41/Black=0.15 (very precise)} 1/2-1/2